bitfinex-derivatives/quotes_BTCF0:USTF0_20250318
["timestamp","ask_amount","ask_price","bid_price","bid_amount"]
[1742322672391,0.162035,81491.0,81490.0,0.12278727]
[1742322672592,0.162035,81491.0,81490.0,0.24618727]
[1742322672897,0.162035,81491.0,81490.0,0.68218727]
[1742322673995,0.0393,81491.0,81490.0,0.68218727]
[1742322674393,0.1840906,81497.0,81496.0,0.1227274]
[1742322674788,0.1840906,81497.0,81496.0,0.1974274]
[1742322675099,0.122735,81491.0,81490.0,0.48425077]
[1742322675395,0.122735,81491.0,81490.0,0.60698727]
[1742322675997,0.161735,81491.0,81490.0,0.60698727]
[1742322676493,0.161735,81491.0,81490.0,5.077e-05]
[1742322676679,0.161735,81491.0,81490.0,0.12345077]
[1742322677292,0.161735,81491.0,81490.0,0.24618727]
[1742322677506,0.161735,81491.0,81490.0,0.36058727]
[1742322677795,0.1840858,81499.0,81498.0,0.1227229]
[1742322677991,0.2220858,81499.0,81498.0,0.1227229]
[1742322678187,0.2834481,81499.0,81498.0,0.1227229]
[1742322679891,0.1607238,81499.0,81498.0,0.1227229]
[1742322680705,0.038,81499.0,81498.0,0.1227229]
[1742322680893,0.1227167,81504.0,81499.0,0.1227229]
[1742322681088,0.0361,81506.0,81499.0,0.1227229]
[1742322681294,0.2227214,81500.0,81499.0,0.1227229]
[1742322681502,0.1,81500.0,81499.0,0.1227229]
[1742322682298,0.2227214,81500.0,81499.0,0.1227229]
[1742322683197,0.2599214,81500.0,81499.0,0.1227229]
[1742322683599,0.1372,81500.0,81499.0,0.1227229]
[1742322684587,0.1,81500.0,81499.0,0.1227229]
[1742322684792,0.00012138,81507.0,81506.0,0.1227124]
[1742322684992,0.5874541,81527.0,81506.0,0.48416]
[1742322685192,0.1226985,81518.0,81517.0,0.1840352]
[1742322685395,0.1226985,81518.0,81517.0,0.3073952]
[1742322685894,0.0372,81519.0,81518.0,0.1226943]
[1742322686098,0.2616269,81526.0,81525.0,0.1226823]
[1742322686304,0.1389412,81526.0,81525.0,0.6068423]
[1742322686498,0.0383,81526.0,81525.0,0.6068423]
[1742322687094,0.1609823,81526.0,81525.0,0.6068423]
[1742322687299,0.0383,81526.0,81525.0,0.4834823]
[1742322687500,0.0383,81526.0,81517.0,0.42159762]
[1742322687501,0.1226943,81518.0,81517.0,0.42159762]
[1742322687800,0.1226943,81518.0,81517.0,0.66765342]
[1742322688204,0.2002943,81518.0,81517.0,0.66765342]
[1742322688512,0.2002943,81518.0,81517.0,0.54495762]
[1742322688698,0.2002943,81518.0,81517.0,0.66765342]
[1742322688897,0.2002943,81518.0,81517.0,0.30685342]
[1742322689501,0.2002943,81518.0,81517.0,0.66765342]
[1742322689702,0.2002943,81518.0,81517.0,0.67692226]
[1742322690209,0.1609943,81518.0,81517.0,0.67692226]
[1742322690608,0.0383,81518.0,81517.0,0.67692226]
[1742322690810,0.00011903,81522.0,81521.0,0.1226898]
[1742322692901,0.00013333,81527.0,81526.0,0.1226823]
[1742322693102,0.1226701,81537.0,81536.0,0.1226657]
[1742322693300,0.1226701,81537.0,81536.0,0.2459857]
[1742322693608,0.0392,81537.0,81536.0,0.2459857]
[1742322693997,0.1618657,81537.0,81536.0,0.2459857]
[1742322694811,0.1991657,81537.0,81536.0,0.2459857]
[1742322695812,0.1991657,81537.0,81536.0,0.2820857]
[1742322696111,0.1840031,81535.0,81534.0,0.12332]
[1742322698717,0.1840031,81535.0,81534.0,0.2459902]
[1742322699109,0.1840031,81535.0,81534.0,0.12332]
[1742322700006,0.1840031,81535.0,81534.0,0.20102]
[1742322701208,0.1840031,81535.0,81534.0,0.12332]
[1742322701410,0.1226733,81532.0,81531.0,0.89132]
[1742322701605,0.1226778,81529.0,81528.0,0.00018399]
[1742322702120,0.1226913,81520.0,81519.0,0.12332]
[1742322702315,0.1226913,81520.0,81515.0,0.89112]
[1742322702316,0.0613465,81519.0,81515.0,0.89112]
[1742322702615,0.1226973,81516.0,81515.0,0.90016514]
[1742322703215,0.1226973,81516.0,81515.0,1.02286394]
[1742322703216,0.1950973,81516.0,81515.0,1.02286394]
[1742322703421,0.1950973,81516.0,81515.0,1.07497073]
[1742322703716,0.1950973,81516.0,81515.0,0.95227193]
[1742322704318,0.1950973,81516.0,81515.0,0.95327193]
[1742322705018,0.1950973,81516.0,81515.0,0.90016514]
[1742322705811,0.1950973,81516.0,81515.0,0.00904514]
[1742322706009,0.1227064,81510.0,81509.0,0.0738]
[1742322706414,0.1952064,81510.0,81509.0,0.0738]
[1742322706614,0.1952064,81510.0,81509.0,0.12550105]
[1742322707715,0.1952064,81510.0,81509.0,0.05170105]
[1742322707908,0.1227094,81508.0,81507.0,0.00922754]
[1742322708109,0.1227154,81504.0,81503.0,0.06347554]
[1742322708621,0.1971154,81504.0,81503.0,0.11532098]
[1742322708822,0.1971154,81504.0,81503.0,0.05184544]
[1742322709022,0.1227199,81501.0,81500.0,0.077]
[1742322709424,0.1227214,81500.0,81499.0,0.89116]
[1742322709625,0.1227214,81500.0,81499.0,0.90050467]
[1742322709827,0.1611214,81500.0,81499.0,0.90050467]
[1742322710725,0.2001214,81500.0,81499.0,0.93650467]
[1742322711218,0.2001214,81500.0,81499.0,0.98828307]
[1742322712412,0.2001214,81500.0,81499.0,0.89116]
[1742322712615,0.122729,81495.0,81492.0,0.12332]
[1742322712920,0.122729,81495.0,81486.0,0.12332]
[1742322713119,0.195129,81495.0,81494.0,0.00934265]
[1742322713424,0.1227485,81482.0,81481.0,0.89128]
[1742322713924,0.1227485,81482.0,81481.0,0.94237283]
[1742322714117,0.1602485,81482.0,81481.0,0.94237283]
[1742322714719,0.1957485,81482.0,81481.0,0.98137283]
[1742322715123,0.1957485,81482.0,81481.0,0.01225084]
[1742322715315,0.5565485,81482.0,81481.0,0.01225084]
[1742322715512,0.5565485,81482.0,81473.0,0.00018399]
[1742322715513,0.1227606,81474.0,81473.0,0.00018399]
[1742322715720,0.4835606,81474.0,81473.0,0.00950944]
[1742322715938,0.4835606,81474.0,81473.0,0.00018399]
[1742322716229,0.1227606,81474.0,81473.0,0.00018399]
[1742322716725,0.1992606,81474.0,81473.0,0.00018399]
[1742322716929,0.1992606,81474.0,81473.0,0.03838399]
[1742322717319,0.1992606,81474.0,81473.0,0.07568399]
[1742322719522,0.1992606,81474.0,81473.0,0.08479664]
[1742322720421,0.2002606,81474.0,81473.0,0.08479664]
[1742322721129,0.5620606,81474.0,81473.0,0.00929664]
[1742322722319,0.5620606,81474.0,81473.0,0.07398399]
[1742322722525,0.1227726,81466.0,81465.0,0.89128]
[1742322722725,0.1227832,81459.0,81458.0,0.0354]
[1742322722926,0.1227832,81459.0,81447.0,0.8916]
[1742322722927,0.1227998,81448.0,81447.0,0.8916]
[1742322723127,0.1227998,81448.0,81447.0,1.02404546]
[1742322723446,0.1227998,81448.0,81447.0,1.14684676]
[1742322723637,0.1227998,81448.0,81447.0,1.19786165]
[1742322724323,0.0613981,81451.0,81447.0,1.19786165]
[1742322724531,0.3608,81474.0,81450.0,0.3608]
[1742322724742,0.0613848,81470.0,81469.0,0.0613828]
[1742322725037,0.1841573,81470.0,81469.0,0.0613828]
[1742322725227,0.1227681,81469.0,81468.0,0.122769]
[1742322725425,0.1227696,81468.0,81467.0,0.2461297]
[1742322725629,0.1227696,81468.0,81467.0,0.12336]
[1742322725938,0.1227696,81468.0,81467.0,0.2461311]
[1742322726129,0.1227696,81468.0,81467.0,0.2813311]
[1742322727029,0.0613848,81470.0,81469.0,0.1227681]
[1742322727538,0.0613848,81470.0,81469.0,0.5229681]
[1742322727735,0.0613848,81470.0,81469.0,0.5598681]
[1742322728324,0.061365,81495.0,81475.0,0.1227591]
[1742322728526,0.1841215,81484.0,81483.0,0.122747]
[1742322728826,0.1841215,81484.0,81483.0,0.606907]
[1742322729026,0.1841215,81484.0,81483.0,0.246107]
[1742322729221,0.1841215,81484.0,81483.0,0.17531558]
[1742322729840,0.2213215,81484.0,81483.0,0.17531558]
[1742322730341,0.2213215,81484.0,81475.0,0.00018411]
[1742322730342,0.1227576,81476.0,81475.0,0.00018411]
[1742322730538,0.1227576,81476.0,81475.0,0.24630321]
[1742322730732,0.1227576,81476.0,81475.0,0.12354411]
[1742322730960,0.1970576,81476.0,81475.0,0.25023337]
[1742322731236,0.1970576,81476.0,81475.0,0.37299247]
[1742322731426,0.1227547,81478.0,81477.0,0.0613779]
[1742322731631,0.0613754,81481.0,81480.0,0.1227515]
[1742322732731,0.0613766,81479.0,81475.0,0.17509337]
[1742322732937,0.1227576,81476.0,81475.0,0.17509337]
[1742322733333,0.1963576,81476.0,81475.0,0.17509337]
[1742322735027,0.1973576,81476.0,81475.0,0.17509337]
[1742322736141,0.1973576,81476.0,81475.0,0.05177337]
[1742322736339,0.1963576,81476.0,81475.0,0.05177337]
[1742322736530,0.1973576,81476.0,81475.0,0.05177337]
[1742322737131,0.1963576,81476.0,81475.0,0.05177337]
[1742322737341,0.1973576,81476.0,81475.0,0.05177337]
[1742322738024,0.1963576,81476.0,81475.0,0.05177337]
[1742322738234,0.1983576,81476.0,81475.0,0.05177337]
[1742322739326,0.1983576,81476.0,81475.0,1e-08]
[1742322739538,0.1227877,81456.0,81455.0,0.89168]
[1742322740040,0.2345877,81456.0,81455.0,0.89168]
[1742322740830,0.1227892,81455.0,81454.0,0.05090105]
[1742322741138,0.1227998,81448.0,81447.0,0.00930957]
[1742322741534,0.1949998,81448.0,81447.0,0.06081425]
[1742322741730,0.1949998,81448.0,81447.0,0.18361555]
[1742322741935,0.1949998,81448.0,81447.0,0.06081425]
[1742322742442,0.1949998,81448.0,81447.0,0.18361555]
[1742322743041,0.1949998,81448.0,81447.0,0.06081425]
[1742322744143,0.1949998,81448.0,81447.0,0.00930957]
[1742322745138,0.1949998,81448.0,81447.0,0.00018411]
[1742322745341,0.1228088,81442.0,81441.0,0.3608]
[1742322745538,0.1228118,81440.0,81439.0,0.89168]
[1742322745844,0.1228118,81440.0,81439.0,0.05034807]
[1742322746140,0.1228314,81427.0,81426.0,0.3608]
[1742322746339,0.1228314,81427.0,81426.0,0.3996]
[1742322746533,0.1615314,81427.0,81426.0,0.3996]
[1742322746931,0.1615314,81427.0,81426.0,0.57437057]
[1742322747132,0.1615314,81427.0,81426.0,0.45153757]
[1742322747332,0.1615314,81427.0,81426.0,0.4606702]
[1742322747529,0.1969314,81427.0,81426.0,0.40973263]
[1742322748133,0.1969314,81427.0,81426.0,0.04893263]
[1742322749542,0.1969314,81427.0,81426.0,0.08693263]
[1742322750747,0.1969314,81427.0,81426.0,0.0778]
[1742322751046,0.5577314,81427.0,81425.0,1e-08]
[1742322751242,0.1228435,81419.0,81411.0,0.0353]
[1742322751442,0.1228435,81419.0,81412.0,0.0364]
[1742322751748,0.1955435,81419.0,81412.0,0.1592537]
[1742322751952,0.1955435,81419.0,81414.0,0.122851]
[1742322752142,0.1945435,81419.0,81415.0,0.1608493]
[1742322752334,0.1945435,81419.0,81415.0,0.038]
[1742322752532,0.1945435,81419.0,81416.0,0.0364]
[1742322752732,0.1945435,81419.0,81418.0,0.05119172]
[1742322752947,0.1945435,81419.0,81418.0,0.00018411]
[1742322753748,0.1965435,81419.0,81418.0,0.00018411]
[1742322754538,0.1975435,81419.0,81418.0,0.00018411]
[1742322757239,0.1945435,81419.0,81418.0,0.00018411]
[1742322757441,0.1985435,81419.0,81418.0,0.00018411]
[1742322758151,0.1995435,81419.0,81418.0,0.00018411]
[1742322759753,0.1945435,81419.0,81418.0,0.00018411]
[1742322760053,0.1985435,81419.0,81418.0,0.00018411]
[1742322760253,0.1228616,81407.0,81406.0,0.00911365]
[1742322760455,0.1228616,81407.0,81404.0,0.0353]
[1742322760456,0.1228631,81406.0,81405.0,0.0381]
[1742322760750,0.1600631,81406.0,81405.0,0.0381]
[1742322761051,0.1600631,81406.0,81394.0,0.0367]
[1742322761052,0.1228707,81401.0,81394.0,0.0367]
[1742322761449,0.5208707,81401.0,81399.0,0.05149084]
[1742322761756,0.5559707,81401.0,81395.0,0.0374]
[1742322762147,0.1228782,81396.0,81395.0,0.0374]
[1742322762642,0.5570782,81396.0,81395.0,0.0374]
[1742322762843,0.60981861,81396.0,81395.0,0.0374]
[1742322763153,0.1228828,81393.0,81392.0,0.00018422]
[1742322763553,0.1962828,81393.0,81392.0,0.00018422]
[1742322765455,0.19617489,81393.0,81392.0,0.00018422]
[1742322766247,0.19717489,81393.0,81392.0,0.03868422]
[1742322767052,0.19817489,81393.0,81392.0,0.03868422]
[1742322767742,0.19817489,81393.0,81392.0,0.07538422]
[1742322769459,0.19617489,81393.0,81392.0,0.07538422]
[1742322770361,0.19717489,81393.0,81392.0,0.07538422]
[1742322770858,0.19717489,81393.0,81392.0,0.00018422]
[1742322771060,0.19817489,81393.0,81392.0,0.00018422]
[1742322771754,0.19817489,81393.0,81392.0,0.03708422]
[1742322774058,0.19717489,81393.0,81392.0,0.03708422]
[1742322774947,0.19817489,81393.0,81392.0,0.03708422]
[1742322775860,0.16307489,81393.0,81392.0,0.03708422]
[1742322776058,0.16307489,81393.0,81392.0,0.52076852]
[1742322776260,0.16307489,81393.0,81392.0,0.55606852]
[1742322776559,0.16207489,81393.0,81392.0,0.55606852]
[1742322776763,0.19967489,81393.0,81392.0,0.55606852]
[1742322776970,0.19967489,81393.0,81392.0,0.43318422]
[1742322777455,0.19967489,81393.0,81392.0,0.55606852]
[1742322779562,0.19867489,81393.0,81392.0,0.43318422]
[1742322779865,0.19967489,81393.0,81392.0,0.55606852]
[1742322780657,0.19867489,81393.0,81392.0,0.55606852]
[1742322781568,0.19867489,81393.0,81392.0,0.43318422]
[1742322782170,0.19867489,81393.0,81392.0,0.55606852]
[1742322782561,0.19867489,81393.0,81392.0,0.39788422]
[1742322782962,0.19867489,81393.0,81392.0,0.52076852]
[1742322783474,0.19867489,81393.0,81392.0,0.52176852]
[1742322784858,0.19867489,81393.0,81392.0,0.55616852]
[1742322785366,0.01675337,81412.0,81400.0,0.1228692]
[1742322785559,0.1228828,81393.0,81392.0,0.48438422]
[1742322785965,0.1986828,81393.0,81392.0,0.00018422]
[1742322787570,0.1996828,81393.0,81392.0,0.00018422]
[1742322788166,0.5614828,81393.0,81392.0,4.84e-05]
[1742322789271,0.2006828,81393.0,81392.0,4.84e-05]
[1742322789658,0.1986828,81393.0,81392.0,4.84e-05]
[1742322789861,0.2006828,81393.0,81392.0,4.84e-05]
[1742322792864,0.1986828,81393.0,81392.0,4.84e-05]
[1742322793069,0.1996828,81393.0,81392.0,4.84e-05]
[1742322793570,0.3230828,81393.0,81392.0,4.84e-05]
[1742322793772,0.34937238,81393.0,81392.0,4.84e-05]
[1742322794473,0.34737238,81393.0,81392.0,4.84e-05]
[1742322794668,0.3240828,81393.0,81392.0,4.84e-05]
[1742322794970,0.2006828,81393.0,81392.0,4.84e-05]
[1742322795169,0.0778,81393.0,81392.0,4.84e-05]
[1742322795671,0.0778,81393.0,81392.0,0.1229327]
[1742322796062,0.10108958,81393.0,81392.0,0.1229327]
[1742322796262,0.10408958,81393.0,81392.0,0.1996327]
[1742322796867,0.10108958,81393.0,81392.0,0.1996327]
[1742322797063,0.10108958,81393.0,81392.0,0.2006327]
[1742322797661,0.10108958,81393.0,81392.0,0.1996327]
[1742322797864,0.10108958,81393.0,81392.0,0.2006327]
[1742322798170,0.10108958,81393.0,81392.0,0.13147212]
[1742322800077,0.02528958,81393.0,81392.0,0.13147212]
[1742322800482,0.0738,81401.0,81400.0,0.1228722]
[1742322800781,0.0738,81401.0,81400.0,0.6070722]
[1742322801266,0.0738,81401.0,81400.0,0.6803722]
[1742322801471,0.00018422,81409.0,81408.0,0.1228601]
[1742322801670,0.00018422,81409.0,81408.0,0.4836601]
[1742322802173,0.00018422,81409.0,81408.0,0.1228601]
[1742322803184,0.00018422,81409.0,81407.0,0.3608]
[1742322803385,0.00018422,81409.0,81408.0,0.1228601]
[1742322803578,0.00118422,81409.0,81408.0,0.1228601]
[1742322804272,0.00118422,81409.0,81408.0,0.1964601]
[1742322804582,0.07318422,81409.0,81408.0,0.1964601]
[1742322804773,0.07318422,81409.0,81408.0,0.1589601]
[1742322804969,0.07318422,81409.0,81407.0,0.3608]
[1742322805175,0.1228707,81401.0,81399.0,0.4842]
[1742322805379,0.06143,81408.0,81399.0,0.1234]
[1742322805578,0.1228707,81401.0,81399.0,0.1234]
[1742322806106,0.2313707,81401.0,81400.0,0.1228722]
[1742322806794,0.2313707,81401.0,81400.0,0.18381388]
[1742322810300,0.1085,81401.0,81400.0,0.18381388]
[1742322810497,0.0721,81401.0,81400.0,0.25621388]
[1742322810905,0.1949707,81401.0,81400.0,0.25621388]
[1742322811099,0.1949707,81401.0,81400.0,0.18381388]
[1742322812509,0.1949707,81401.0,81400.0,0.25701388]
[1742322813914,0.1949707,81401.0,81400.0,0.21991388]
[1742322814209,0.1949707,81401.0,81400.0,0.18381388]
[1742322814393,0.1949707,81401.0,81400.0,0.06094168]
[1742322814803,0.1949707,81401.0,81400.0,0.18381388]
[1742322815403,0.1949707,81401.0,81400.0,0.22071388]
[1742322815609,0.1949707,81401.0,81400.0,0.25551388]
[1742322816198,0.1949707,81401.0,81400.0,0.22071388]
[1742322816411,0.1949707,81401.0,81400.0,0.18381388]
[1742322816808,0.1949707,81401.0,81400.0,0.06094168]
[1742322817003,0.1949707,81401.0,81385.0,0.07066586]
[1742322817004,0.1228933,81386.0,81385.0,0.00921876]
[1742322817203,0.1228979,81383.0,81382.0,0.3608]
[1742322817406,0.14965474,81383.0,81382.0,0.42331613]
[1742322817605,0.22035474,81383.0,81382.0,0.42331613]
[1742322818313,0.1935979,81383.0,81382.0,0.42331613]
[1742322821106,0.1945979,81383.0,81382.0,0.42331613]
[1742322821316,0.1945979,81383.0,81382.0,0.43250544]
[1742322821514,0.1945979,81383.0,81382.0,0.00918931]
[1742322821708,0.0614535,81377.0,81372.0,0.3608]
[1742322822016,0.1229114,81374.0,81372.0,0.3608]
[1742322822213,0.14966824,81374.0,81372.0,0.42224039]
[1742322822412,0.25736824,81374.0,81372.0,0.42224039]
[1742322822611,0.25736824,81374.0,81369.0,0.12336]
[1742322822814,0.1229266,81364.0,81363.0,0.0724]
[1742322823009,0.1229266,81364.0,81363.0,0.19576]
[1742322823316,0.1943266,81364.0,81363.0,0.19576]
[1742322823704,0.1943266,81364.0,81363.0,0.25592673]
[1742322824006,0.1943266,81364.0,81363.0,0.37885483]
[1742322824207,0.1943266,81364.0,81363.0,0.38795639]
[1742322826419,0.0614591,81370.0,81369.0,0.122919]
[1742322826623,0.0614591,81370.0,81369.0,0.483719]
[1742322827114,0.0972591,81370.0,81369.0,0.483719]
[1742322827818,0.1347591,81370.0,81369.0,0.555919]
[1742322828017,0.0733,81370.0,81369.0,0.555919]
[1742322828313,0.0358,81370.0,81369.0,0.679279]
[1742322829321,0.1587175,81370.0,81369.0,0.679279]
[1742322829721,0.1956175,81370.0,81369.0,0.680279]
[1742322830217,0.0358,81370.0,81369.0,0.680279]
[1742322830522,0.0358,81370.0,81369.0,0.682279]
[1742322831022,0.1587175,81370.0,81369.0,0.682279]
[1742322832020,0.1948175,81370.0,81369.0,0.682279]
[1742322832204,0.1948175,81370.0,81369.0,0.55936]
[1742322832408,0.1948175,81370.0,81369.0,0.55636]
[1742322832608,0.1948175,81370.0,81369.0,0.680279]
[1742322833323,0.1948175,81370.0,81369.0,0.679279]
[1742322834120,0.1948175,81370.0,81369.0,0.680279]
[1742322835532,0.06164164,81372.0,81371.0,0.122916]
[1742322835718,0.03738434,81372.0,81371.0,0.122916]
[1742322835918,0.03738434,81372.0,81371.0,0.160516]
[1742322836416,0.16029884,81372.0,81371.0,0.160516]
[1742322836616,0.19589884,81372.0,81371.0,0.160516]
[1742322837021,0.12309884,81372.0,81371.0,0.160516]
[1742322837230,0.1229054,81378.0,81377.0,0.1229069]
[1742322837524,0.1229054,81378.0,81377.0,0.6446669]
[1742322837831,0.1229054,81378.0,81377.0,0.48416]
[1742322838019,0.2324054,81378.0,81377.0,0.48416]
[1742322838420,0.1229054,81378.0,81377.0,0.48416]
[1742322838623,0.1229054,81378.0,81377.0,0.6439669]
[1742322838822,0.1949054,81378.0,81377.0,0.6439669]
[1742322839426,0.1949054,81378.0,81377.0,0.1598069]
[1742322839629,0.1949054,81378.0,81369.0,0.36098434]
[1742322839630,0.122913,81373.0,81369.0,0.36098434]
[1742322839833,0.2324145,81372.0,81371.0,0.001]
[1742322840023,0.1229281,81363.0,81362.0,0.12336]
[1742322840421,0.1949281,81363.0,81362.0,0.12336]
[1742322840832,0.1229386,81356.0,81355.0,0.92942]
[1742322841039,0.1229386,81356.0,81355.0,0.89252]
[1742322841223,0.1229402,81355.0,81354.0,0.3608]
[1742322841721,0.1933402,81355.0,81354.0,0.42220749]
[1742322841921,0.1933402,81355.0,81354.0,0.43126548]
[1742322842428,0.1933402,81355.0,81354.0,0.42220749]
[1742322842637,0.1933402,81355.0,81354.0,0.54514919]
[1742322842831,0.1229338,81360.0,81359.0,0.0614662]
[1742322843021,0.1580338,81360.0,81359.0,0.12336]
[1742322843223,0.1933338,81360.0,81359.0,0.12336]
[1742322843534,0.2291338,81360.0,81359.0,0.12336]
[1742322844439,0.1229402,81355.0,81354.0,0.43130884]
[1742322844634,0.1229402,81355.0,81354.0,0.55466884]
[1742322844937,0.1949402,81355.0,81354.0,0.07050884]
[1742322845237,0.1949402,81355.0,81347.0,0.1229518]
[1742322845238,0.1229507,81348.0,81347.0,0.1229518]
[1742322845438,0.1229538,81346.0,81345.0,0.0375]
[1742322845638,0.1229538,81346.0,81345.0,0.16086]
[1742322845834,0.1949538,81346.0,81345.0,0.16086]
[1742322846034,0.1949538,81346.0,81345.0,0.00900903]
[1742322846238,0.1229553,81345.0,81344.0,0.12336]
[1742322846635,0.1949553,81345.0,81344.0,0.12336]
[1742322846948,0.1949553,81345.0,81344.0,0.18639745]
[1742322847129,0.1939553,81345.0,81344.0,0.18639745]
[1742322847924,0.1939553,81345.0,81344.0,0.18739745]
[1742322848748,0.1939553,81345.0,81344.0,0.06403745]
[1742322848930,0.1229855,81325.0,81324.0,0.3608]
[1742322849340,0.1229855,81325.0,81324.0,0.36979796]
[1742322849536,0.1229855,81325.0,81324.0,0.3608]
[1742322850935,0.1229976,81317.0,81316.0,0.06063849]
[1742322851239,0.1230218,81301.0,81293.0,0.72420249]
[1742322851441,0.1230324,81294.0,81293.0,0.65488806]
[1742322853547,0.1260324,81294.0,81293.0,0.3608]
[1742322855144,0.1989324,81294.0,81293.0,0.3608]
[1742322856447,0.0615124,81300.0,81297.0,0.1845382]
[1742322856751,0.0615124,81300.0,81293.0,0.7216]
[1742322856752,0.12320566,81302.0,81301.0,0.1230218]
[1742322857040,0.12320566,81302.0,81301.0,0.4838218]
[1742322857246,0.12320566,81302.0,81301.0,0.6072618]
[1742322858152,0.12320566,81302.0,81301.0,0.6092618]
[1742322859143,0.00018446,81302.0,81301.0,0.6092618]
[1742322859839,0.1230073,81312.0,81311.0,0.0615025]
[1742322860151,0.1230073,81312.0,81311.0,0.1849425]
[1742322860333,0.1230029,81314.0,81313.0,0.1230021]
[1742322863747,0.035,81315.0,81312.0,0.06107981]
[1742322863748,0.1230037,81313.0,81312.0,0.06107981]
[1742322863954,0.1230052,81312.0,81311.0,0.12344]
[1742322864143,0.1230067,81311.0,81310.0,0.3608]
[1742322864344,0.1997067,81311.0,81310.0,0.48424]
[1742322865756,0.1997067,81311.0,81310.0,0.54440666]
[1742322865938,0.0967902,81329.0,81313.0,0.061501]
[1742322866254,0.0967902,81329.0,81318.0,0.1844903]
[1742322866255,0.1229972,81319.0,81318.0,0.1844903]
[1742322866439,0.1229961,81318.0,81317.0,0.12344]
[1742322866643,0.1958961,81318.0,81317.0,0.12344]
[1742322867555,0.1581961,81318.0,81317.0,0.2464376]
[1742322867759,0.1581961,81318.0,81317.0,0.12344]
[1742322868053,0.1958961,81318.0,81317.0,0.12344]
[1742322868244,0.1968961,81318.0,81317.0,0.12344]
[1742322868554,0.1968961,81318.0,81317.0,0.2464376]
[1742322868951,0.1968961,81318.0,81317.0,0.12344]
[1742322869549,0.1968961,81318.0,81317.0,0.2464376]
[1742322869747,0.1958961,81318.0,81317.0,0.2464376]
[1742322869950,0.1968961,81318.0,81317.0,0.2464376]
[1742322870358,0.1239961,81318.0,81317.0,0.6072376]
[1742322870557,0.1239961,81318.0,81317.0,0.4837976]
[1742322870756,0.00172001,81344.0,81332.0,0.1844581]
[1742322870956,0.0614829,81338.0,81337.0,0.1229631]
[1742322872054,0.0988829,81338.0,81337.0,0.1229631]
[1742322872241,0.00018446,81346.0,81340.0,0.0614813]
[1742322872446,0.00018446,81346.0,81345.0,0.1229553]
[1742322872752,0.00018446,81346.0,81345.0,0.2463953]
[1742322873855,0.0614663,81360.0,81353.0,0.1229432]
[1742322873856,0.0614665,81360.0,81353.0,0.1229432]
[1742322874160,0.0988676,81359.0,81353.0,0.6071832]
[1742322874346,0.4893415,81354.0,81353.0,0.6071832]
[1742322874843,0.1229314,81363.0,81362.0,0.1843884]
[1742322875047,0.1229314,81363.0,81362.0,0.2458523]
[1742322875555,0.1229296,81362.0,81361.0,0.12344]
[1742322875761,0.1592296,81362.0,81361.0,0.12344]
[1742322875948,0.1965296,81362.0,81361.0,0.15964]
[1742322876150,0.1965296,81362.0,81360.0,0.3608]
[1742322876151,0.1229311,81361.0,81360.0,0.3608]
[1742322876655,0.1229326,81360.0,81359.0,0.1234]
[1742322877158,0.1965326,81360.0,81359.0,0.1234]
[1742322878559,0.1985326,81360.0,81359.0,0.1234]
[1742322879861,0.0756,81360.0,81359.0,0.6445341]
[1742322880047,0.0393,81360.0,81359.0,0.6833341]
[1742322880252,0.002,81360.0,81359.0,0.6833341]
[1742322882851,0.1624192,81369.0,81368.0,0.1229205]
[1742322883058,0.223879,81369.0,81368.0,0.6070805]
[1742322883363,0.223879,81369.0,81368.0,0.6434805]
[1742322883763,0.1009598,81369.0,81368.0,0.6434805]
[1742322884061,0.0614598,81369.0,81368.0,0.6434805]
[1742322884261,0.0654598,81369.0,81368.0,0.6812805]
[1742322884458,0.1022598,81369.0,81368.0,0.6812805]
[1742322884651,0.00018446,81371.0,81370.0,0.1229175]
[1742322884846,0.1229082,81378.0,81377.0,0.1229039]
[1742322885050,0.1229082,81378.0,81377.0,0.6070639]
[1742322885246,0.1597082,81378.0,81377.0,0.6070639]
[1742322885451,0.1967082,81378.0,81377.0,0.6828639]
[1742322888458,0.1967082,81378.0,81377.0,0.52216]
[1742322888660,0.1967082,81378.0,81377.0,0.48416]
[1742322889467,0.1967082,81378.0,81377.0,0.55976]
[1742322890465,0.1967082,81378.0,81377.0,0.6826669]
[1742322892661,0.1597082,81378.0,81377.0,0.6826669]
[1742322892867,0.1597054,81378.0,81377.0,0.6826669]
[1742322893166,0.1597054,81378.0,81377.0,0.55976]
[1742322893358,0.1970054,81378.0,81377.0,0.55976]
[1742322894764,0.1970054,81378.0,81377.0,0.4364]
[1742322894966,0.1970054,81378.0,81377.0,0.55972]
[1742322895353,0.1970054,81378.0,81377.0,0.6826269]
[1742322896966,0.0741,81378.0,81377.0,0.6826269]
[1742322897161,0.1970054,81378.0,81377.0,0.6826269]
[1742322897363,0.0741,81378.0,81377.0,0.6826269]
[1742322897563,0.0384,81381.0,81380.0,0.1229024]
[1742322897856,0.1843446,81384.0,81383.0,0.0614488]
[1742322898062,0.1843446,81384.0,81383.0,0.1847688]
[1742322898256,0.2631446,81384.0,81383.0,0.1847688]
[1742322898658,0.2631446,81384.0,81383.0,0.2462179]
[1742322899067,0.2631446,81384.0,81383.0,0.25561699]
[1742322899457,0.0788,81384.0,81383.0,0.25561699]
[1742322899657,0.1,81400.0,81385.0,0.1228948]
[1742322899859,0.1843281,81392.0,81391.0,0.1228858]
[1742322900055,0.1843281,81392.0,81391.0,0.2838058]
[1742322900251,0.0386,81392.0,81391.0,0.3241058]
[1742322900567,0.0398,81393.0,81392.0,0.1228843]
[1742322900767,0.0398,81393.0,81392.0,0.2412843]
[1742322900965,0.1,81400.0,81399.0,0.1228737]
[1742322901265,0.1,81400.0,81399.0,0.6069937]
[1742322901461,0.1398,81400.0,81399.0,0.6848937]
[1742322901968,0.061433,81405.0,81399.0,0.6848937]
[1742322901969,0.0614272,81412.0,81399.0,0.56202]
[1742322902163,0.0386,81412.0,81411.0,0.1228556]
[1742322902358,0.0752,81412.0,81411.0,0.2461756]
[1742322902563,0.1980541,81412.0,81411.0,0.3264756]
[1742322902759,0.1980541,81412.0,81411.0,0.37648752]
[1742322904965,0.0386,81418.0,81417.0,0.1228465]
[1742322905270,0.0779,81418.0,81417.0,0.4836465]
[1742322905655,0.000122,81420.0,81419.0,0.1228435]
[1742322905866,0.000122,81420.0,81419.0,0.2857235]
[1742322906062,0.162864,81420.0,81419.0,0.2857235]
[1742322906366,0.202164,81420.0,81419.0,0.2857235]
[1742322906562,0.079322,81420.0,81419.0,0.2857235]
[1742322906770,0.040022,81420.0,81419.0,0.2857235]
[1742322907063,0.000122,81420.0,81419.0,0.2857235]
[1742322907459,0.0399,81426.0,81425.0,0.1228345]
[1742322907765,0.0399,81426.0,81425.0,1.3762345]
[1742322908168,0.162733,81426.0,81425.0,1.2534]
[1742322908365,0.162733,81426.0,81425.0,0.8926]
[1742322908563,0.240933,81426.0,81425.0,0.8926]
[1742322909369,0.240933,81426.0,81425.0,1.2534]